bitfinex/quotes_BTCUSD_20220202
["timestamp","ask_amount","ask_price","bid_price","bid_amount"]
[1643820841544,0.77278231,37377.0,37375.0,0.35949798]
[1643820841743,0.00021231,37377.0,37376.0,2.32]
[1643820841943,0.00021231,37377.0,37376.0,2.3736]
[1643820842144,0.00021231,37377.0,37376.0,2.4736]
[1643820842545,0.01173136,37384.0,37377.0,1.483774]
[1643820842747,0.01173136,37384.0,37383.0,0.08945008]
[1643820842948,0.01173136,37384.0,37383.0,0.38067006]
[1643820843249,0.01173136,37384.0,37383.0,1.58067006]
[1643820843449,0.01173136,37384.0,37383.0,1.83513702]
[1643820843847,0.01173136,37384.0,37383.0,1.90202202]
[1643820844699,0.01173136,37384.0,37383.0,1.95202202]
[1643820845100,0.00011989,37394.0,37386.0,0.066879]
[1643820845301,0.00011989,37394.0,37388.0,0.066874]
[1643820845502,0.00011989,37394.0,37389.0,0.0536]
[1643820845700,0.04674379,37397.0,37389.0,0.0536]
[1643820845701,0.00059411,37395.0,37389.0,0.0536]
[1643820845903,0.04377378,37397.0,37389.0,0.0536]
[1643820846101,0.04377378,37397.0,37393.0,0.2237194]
[1643820846400,0.04377378,37397.0,37394.0,0.0536]
[1643820848339,0.33238836,37399.0,37394.0,0.0536]
[1643820848537,0.00018064,37398.0,37394.0,0.0536]
[1643820849136,0.33238836,37399.0,37394.0,0.0536]
[1643820849137,0.00019505,37396.0,37394.0,0.0536]
[1643820849538,0.00019505,37396.0,37393.0,0.01961116]
[1643820850838,0.26637454,37403.0,37393.0,0.01961116]
[1643820851038,0.39593466,37402.0,37393.0,0.01961116]
[1643820851238,0.31964734,37399.0,37393.0,0.01961116]
[1643820851638,0.07352454,37396.0,37391.0,0.01978328]
[1643820851839,0.07352454,37396.0,37391.0,0.07338328]
[1643820852084,0.2808395,37396.0,37391.0,0.07338328]
[1643820852882,0.39593466,37400.0,37391.0,0.12338328]
[1643820853082,1.01972707,37407.0,37400.0,0.23704596]
[1643820853083,0.39593466,37403.0,37400.0,0.23704596]
[1643820853283,0.39593466,37403.0,37397.0,0.05318]
[1643820853284,0.80211,37402.0,37397.0,0.05318]
[1643820853486,0.80211,37402.0,37397.0,0.0536]
[1643820853882,1.09044443,37402.0,37397.0,0.0536]
[1643820854084,0.00018058,37401.0,37397.0,0.0536]
[1643820854283,0.00018058,37401.0,37398.0,0.20811828]
[1643820854487,0.00018058,37401.0,37399.0,0.0536]
[1643820854684,0.80211,37400.0,37399.0,0.0536]
[1643820854885,0.80211,37400.0,37399.0,0.2036]
[1643820855485,0.80211,37400.0,37399.0,0.2779851]
[1643820855684,0.80211,37400.0,37399.0,0.2036]
[1643820855939,0.80211,37400.0,37399.0,0.0536]
[1643820859241,0.80229069,37400.0,37396.0,0.0536]
[1643820859886,0.80229069,37400.0,37396.0,0.30158293]
[1643820860087,0.80229069,37400.0,37397.0,0.05]
[1643820860287,0.80289633,37400.0,37397.0,0.15]
[1643820860492,0.80289633,37400.0,37396.0,0.0536]
[1643820860688,0.80283633,37400.0,37394.0,0.02201574]
[1643820861392,0.74317384,37399.0,37394.0,0.02150343]
[1643820861590,0.74317384,37399.0,37389.0,0.01867576]
[1643820861591,0.96351527,37398.0,37389.0,0.01867576]
[1643820861790,0.33927713,37395.0,37389.0,0.01867576]
[1643820861988,1.79731759,37394.0,37389.0,0.01867576]
[1643820862189,0.69330913,37393.0,37389.0,0.01867576]
[1643820862390,0.80205,37392.0,37389.0,0.01867576]
[1643820862788,0.58013082,37391.0,37389.0,0.01867576]
[1643820862992,2.40274915,37390.0,37389.0,0.01867576]
[1643820864252,2.10205,37390.0,37388.0,0.00051607]
[1643820864551,1.12362767,37389.0,37388.0,0.00051607]
[1643820864754,1.12362767,37389.0,37382.0,0.34194864]
[1643820864755,1.12318367,37389.0,37382.0,0.34194864]
[1643820864950,1.12318367,37389.0,37387.0,0.00051608]
[1643820865151,1.37180917,37388.0,37387.0,0.00051608]
[1643820865751,0.27180917,37388.0,37387.0,0.00051608]
[1643820865952,0.27263023,37389.0,37381.0,0.47606623]
[1643820866156,0.27263023,37389.0,37386.0,0.0005161]
[1643820867189,0.27263023,37389.0,37383.0,0.066898]
[1643820867390,0.2856744,37384.0,37381.0,0.15322516]
[1643820867588,0.29687041,37383.0,37381.0,0.25598516]
[1643820867788,0.2856744,37384.0,37381.0,0.25598516]
[1643820867991,0.2856744,37384.0,37381.0,0.12220916]
[1643820868195,0.0788697,37383.0,37381.0,0.12220916]
[1643820868390,0.2856744,37384.0,37381.0,0.12220916]
[1643820868589,0.80205,37383.0,37381.0,0.12220916]
[1643820868989,0.80205,37383.0,37381.0,0.12272533]
[1643820869191,0.80205,37383.0,37381.0,0.01996533]
[1643820869388,0.85,37382.0,37381.0,0.01996533]
[1643820869588,0.85,37382.0,37380.0,0.066903]
[1643820870389,0.85,37382.0,37378.0,9.069e-05]
[1643820871043,0.85,37382.0,37378.0,0.00060597]
[1643820871242,0.65,37381.0,37377.0,0.066907]
[1643820871443,0.26581703,37378.0,37375.0,0.02251414]
[1643820871644,0.01809717,37377.0,37375.0,0.02251414]
[1643820875690,0.00018943,37380.0,37375.0,0.02251414]
[1643820875894,0.10376534,37380.0,37375.0,0.02251414]
[1643820876494,0.37619719,37380.0,37375.0,0.02251414]
[1643820877089,0.37619719,37380.0,37376.0,0.00015432]
[1643820878091,0.37619719,37380.0,37375.0,0.02251414]
[1643820878339,0.37619719,37380.0,37376.0,0.00015432]
[1643820878546,0.354032,37379.0,37376.0,0.00015432]
[1643820878742,0.3008803,37378.0,37376.0,0.00015432]
[1643820878939,0.3008803,37378.0,37377.0,6.326e-05]
[1643820879141,0.7218363,37378.0,37376.0,0.00012288]
[1643820879342,0.7218363,37378.0,37367.0,0.133838]
[1643820879343,0.23652526,37374.0,37367.0,0.133838]
[1643820879540,0.23652526,37374.0,37369.0,0.27405746]
[1643820879741,0.23652526,37374.0,37369.0,0.34097946]
[1643820879940,0.28119004,37373.0,37367.0,0.133838]
[1643820880141,0.08956364,37372.0,37367.0,0.133838]
[1643820880340,0.27299485,37371.0,37367.0,0.133838]
[1643820880840,0.26799485,37371.0,37368.0,0.00013718]
[1643820881043,0.23652526,37374.0,37368.0,0.00013718]
[1643820881044,0.28204597,37373.0,37368.0,0.00013718]
[1643820881241,0.23652526,37374.0,37368.0,0.00013718]
[1643820881440,0.2725364,37373.0,37368.0,0.00013718]
[1643820881638,0.32439031,37374.0,37368.0,0.00013718]
[1643820881840,0.5487245,37373.0,37367.0,0.4170869]
[1643820882089,0.5487245,37373.0,37369.0,0.00013717]
[1643820882290,0.27118501,37373.0,37369.0,0.00013717]
[1643820882496,0.27118501,37373.0,37369.0,0.06706217]
[1643820882890,0.23652526,37374.0,37369.0,0.066925]
[1643820883088,0.23652526,37374.0,37369.0,0.06738215]
[1643820883291,0.37702238,37373.0,37369.0,0.06738215]
[1643820883491,0.32067574,37374.0,37369.0,0.06738215]
[1643820883492,0.23652526,37374.0,37369.0,0.06738215]
[1643820884090,0.23652526,37374.0,37369.0,0.066925]
[1643820884091,0.00020112,37373.0,37369.0,0.066925]
[1643820884291,0.00020112,37373.0,37370.0,0.00051274]
[1643820885294,0.00020112,37373.0,37371.0,0.20856191]
[1643820885491,0.00020112,37373.0,37371.0,0.34238391]
[1643820885959,0.00020112,37373.0,37372.0,0.28623683]
[1643820888764,0.00020112,37373.0,37372.0,0.53942072]
[1643820889364,0.41896904,37380.0,37372.0,0.28623683]
[1643820889601,0.066919,37380.0,37372.0,0.28623683]
[1643820890393,0.09050014,37379.0,37374.0,0.00051382]
[1643820890796,0.69219113,37378.0,37374.0,0.00051382]
[1643820890996,0.354032,37377.0,37374.0,0.00051382]
[1643820891295,0.31712232,37376.0,37371.0,0.133822]
[1643820891498,0.31712232,37376.0,37371.0,0.35078189]
[1643820891695,0.31712232,37376.0,37374.0,0.00051383]
[1643820891897,1.55541232,37375.0,37374.0,0.00051383]
[1643820892597,1.304032,37375.0,37366.0,0.133848]
[1643820892795,0.95,37375.0,37373.0,0.00051384]
[1643820893196,1.3,37374.0,37373.0,0.00051384]
[1643820893638,1.3,37374.0,37373.0,0.00040284]
[1643820893834,1.3,37374.0,37372.0,0.33311489]
[1643820894334,0.00018879,37376.0,37372.0,0.33362874]
[1643820894734,0.00018879,37376.0,37374.0,0.27911654]
[1643820894934,0.954032,37375.0,37374.0,0.27911654]
[1643820895135,0.954032,37375.0,37372.0,0.33311489]
[1643820895338,0.6,37375.0,37372.0,0.33311489]
[1643820895535,0.27641327,37374.0,37372.0,0.33311489]
[1643820895735,0.6,37375.0,37372.0,0.33311489]
[1643820896137,0.354032,37374.0,37372.0,0.33311489]
[1643820896337,0.6,37375.0,37372.0,0.33311489]
[1643820896739,0.00018879,37376.0,37372.0,0.33311489]
[1643820897698,0.00018879,37376.0,37372.0,0.41155404]
[1643820897893,0.00018879,37376.0,37372.0,0.51514504]
[1643820898093,0.00018879,37376.0,37373.0,0.133821]
[1643820899096,0.26977412,37382.0,37373.0,0.133821]
[1643820899295,0.26977412,37382.0,37377.0,0.33880129]
[1643820899495,0.26977412,37382.0,37376.0,0.133823]
[1643820900096,0.227711,37378.0,37376.0,0.133823]
[1643820902138,0.28061001,37377.0,37376.0,0.133823]
[1643820902341,0.28061001,37377.0,37366.0,0.13383]
[1643820902342,0.65090368,37377.0,37366.0,0.13383]
[1643820902542,0.354032,37376.0,37371.0,0.0004265]
[1643820902739,0.504032,37376.0,37371.0,0.0004265]
[1643820902940,0.09064425,37374.0,37371.0,0.0004265]
[1643820903139,1.72755735,37372.0,37371.0,0.0004265]
[1643820903440,0.80205,37377.0,37365.0,0.133856]
[1643820903641,0.80205,37377.0,37371.0,0.00042651]
[1643820903839,0.80205,37377.0,37372.0,0.25956447]
[1643820904040,0.79724625,37377.0,37372.0,0.25956447]
[1643820904246,0.79724625,37377.0,37372.0,0.32648447]
[1643820904442,0.79724625,37377.0,37376.0,0.28332442]
[1643820904692,0.79724625,37377.0,37376.0,0.33692442]
[1643820905488,0.7609519,37377.0,37376.0,0.33692442]
[1643820905890,0.7609519,37377.0,37376.0,0.43630235]
[1643820906091,0.7609519,37377.0,37376.0,0.80514659]
[1643820906292,0.33927713,37386.0,37377.0,1.6]
[1643820906493,0.02291516,37388.0,37379.0,0.67]
[1643820906692,0.02291516,37388.0,37380.0,0.34505051]
[1643820906693,0.36219229,37388.0,37380.0,0.34505051]
[1643820907093,0.33927713,37387.0,37380.0,0.0536]
[1643820907295,0.35928663,37388.0,37386.0,0.29296315]
[1643820907492,1.23927713,37387.0,37386.0,0.34656315]
[1643820907692,1.23927713,37387.0,37386.0,0.0536]
[1643820907891,0.9,37387.0,37386.0,0.0536]
[1643820908443,1.45,37387.0,37386.0,0.0536]
[1643820908743,1.84593466,37387.0,37386.0,0.0536]
[1643820909142,1.29593466,37387.0,37385.0,0.066891]
[1643820909552,0.5531755,37386.0,37381.0,0.133793]
[1643820909743,0.5531755,37386.0,37374.0,0.02075689]
[1643820909744,0.39634514,37382.0,37374.0,0.02075689]
[1643820910142,0.63291673,37380.0,37374.0,0.02075689]
[1643820910344,0.27251965,37379.0,37374.0,0.02075689]
[1643820910744,0.27251965,37379.0,37374.0,0.15457189]
[1643820910945,0.6122482,37379.0,37374.0,0.15457189]
[1643820911943,0.6122482,37379.0,37374.0,0.133815]
[1643820912191,0.6122482,37379.0,37374.0,0.41693744]
[1643820913289,0.33972855,37378.0,37374.0,0.133815]
[1643820913487,0.33972855,37377.0,37374.0,0.133815]
[1643820913688,0.33472855,37378.0,37374.0,0.133815]
[1643820914091,0.00018212,37378.0,37374.0,0.133815]
[1643820914992,0.39652726,37378.0,37374.0,0.133815]
[1643820915196,1.04415262,37377.0,37371.0,0.02211007]
[1643820915393,0.81730314,37376.0,37371.0,0.02211007]
[1643820915595,0.33078564,37374.0,37371.0,0.02163154]
[1643820915834,0.31305945,37373.0,37371.0,0.00047853]
[1643820916840,0.31305945,37373.0,37370.0,0.00015453]
[1643820917442,0.27280953,37372.0,37370.0,0.00015453]
[1643820918039,0.31305945,37373.0,37369.0,0.00015454]
[1643820919039,0.31305945,37373.0,37368.0,0.066926]
[1643820919241,0.31305945,37373.0,37369.0,0.00051361]
[1643820919441,0.27889551,37372.0,37369.0,0.00051361]
[1643820919688,0.00018278,37372.0,37369.0,0.00051361]
[1643820920096,0.21324223,37373.0,37369.0,0.00051361]
[1643820920289,0.21079737,37373.0,37368.0,0.066926]
[1643820920689,0.21079737,37373.0,37364.0,0.15247793]
[1643820920690,1.65,37371.0,37364.0,0.15247793]
[1643820920890,0.32784455,37366.0,37364.0,0.01862493]
[1643820921089,2.19733794,37365.0,37364.0,0.01862493]
[1643820921292,1.904032,37365.0,37364.0,0.01862493]
[1643820921492,2.18307056,37365.0,37364.0,0.01862493]
[1643820921689,0.63307056,37365.0,37364.0,0.01862493]
[1643820921893,0.66103532,37365.0,37359.0,9.563e-05]
[1643820922092,0.30700332,37365.0,37358.0,0.35665298]
[1643820922389,0.27903856,37365.0,37358.0,0.35665298]
[1643820922593,0.27903856,37365.0,37358.0,0.35655735]
[1643820923840,0.54704447,37365.0,37358.0,0.133869]
[1643820924142,0.23457339,37359.0,37358.0,0.133869]
[1643820924438,0.58457339,37359.0,37358.0,0.13396463]
[1643820924837,0.23457339,37359.0,37358.0,0.133869]
[1643820925241,0.29196231,37365.0,37358.0,0.133869]
[1643820925438,0.29196231,37365.0,37358.0,0.12896463]
[1643820926241,0.26918019,37365.0,37358.0,0.12896463]
[1643820926542,0.26918019,37365.0,37360.0,0.00051163]
[1643820926841,0.26918019,37365.0,37360.0,0.06745063]
[1643820927289,0.26918019,37365.0,37360.0,0.00051163]
[1643820927494,0.26918019,37365.0,37359.0,9.563e-05]
[1643820927688,0.26918019,37365.0,37361.0,0.00051161]
[1643820927892,0.354032,37364.0,37361.0,0.00051161]
[1643820928089,0.26918019,37365.0,37361.0,0.00051161]
[1643820928488,0.28376997,37364.0,37361.0,0.00051161]
[1643820928688,0.28376997,37364.0,37359.0,9.563e-05]
[1643820928689,0.354032,37363.0,37359.0,9.563e-05]
[1643820928889,0.27444956,37362.0,37361.0,0.00051161]
[1643820929193,0.0001706,37364.0,37361.0,0.00051161]
[1643820929889,0.0001706,37364.0,37359.0,9.563e-05]
[1643820930090,0.0001706,37364.0,37361.0,0.00051161]
[1643820930593,0.0001706,37364.0,37361.0,0.24089814]
[1643820931042,0.0001706,37364.0,37360.0,0.066939]
[1643820931440,0.0001706,37364.0,37361.0,0.00015398]
[1643820932043,0.34550531,37364.0,37361.0,0.00015398]
[1643820932244,0.34389158,37364.0,37359.0,0.02120402]
[1643820932443,0.33327271,37364.0,37359.0,0.02120402]
[1643820932642,0.0671176,37364.0,37361.0,0.00051161]
[1643820932843,0.33631698,37364.0,37361.0,0.00051161]
[1643820933045,0.354032,37363.0,37361.0,0.00051161]
[1643820933249,1.73123702,37362.0,37361.0,0.00051161]
[1643820933443,2.08526902,37362.0,37361.0,0.00051161]
[1643820933646,1.804032,37362.0,37360.0,9.563e-05]
[1643820933845,1.45,37362.0,37360.0,0.00051162]
[1643820934045,0.00017071,37363.0,37360.0,0.00051162]
[1643820934247,0.00017071,37363.0,37360.0,0.06744962]
[1643820934689,0.00017071,37363.0,37360.0,0.066938]
[1643820935190,0.00017071,37363.0,37360.0,0.06744963]
[1643820935388,0.2687218,37363.0,37360.0,0.00051163]
[1643820935894,0.26631197,37363.0,37359.0,9.563e-05]
[1643820936087,0.07668671,37362.0,37358.0,0.128869]
[1643820936288,1.01757829,37361.0,37360.0,0.00051163]
[1643820936487,1.01823951,37361.0,37360.0,0.00051163]
[1643820936687,0.75,37361.0,37360.0,0.00051163]
[1643820937088,0.00017071,37363.0,37360.0,0.00051163]
[1643820937288,0.00017071,37363.0,37359.0,9.563e-05]
[1643820937489,0.09587662,37363.0,37359.0,0.00051164]
[1643820937991,0.09587662,37363.0,37359.0,0.00060727]
[1643820938447,0.09587662,37363.0,37359.0,9.563e-05]
[1643820938645,0.09587662,37363.0,37358.0,0.128869]
[1643820938842,0.00017093,37361.0,37359.0,0.00051163]
[1643820939642,0.00017093,37361.0,37358.0,0.12896463]
[1643820939841,0.00017093,37361.0,37358.0,0.12928333]
[1643820940841,0.00017093,37361.0,37356.0,9.563e-05]
[1643820941046,0.00017093,37361.0,37355.0,0.133889]
[1643820941047,0.00017093,37361.0,37355.0,0.13398463]
[1643820941244,0.00017093,37361.0,37358.0,0.00041434]
[1643820942094,0.00017093,37361.0,37358.0,0.29235178]
[1643820942295,0.00017093,37361.0,37359.0,0.0536]
[1643820942694,0.00017093,37361.0,37359.0,0.187439]
[1643820942894,0.00017093,37361.0,37360.0,1.64999581]
[1643820943092,0.00017093,37361.0,37360.0,1.70359581]
[1643820943598,0.00017093,37361.0,37360.0,1.95572796]
[1643820943796,0.00017093,37361.0,37360.0,2.00572796]
[1643820944195,0.00017093,37361.0,37360.0,2.25572796]
[1643820944594,0.00017093,37361.0,37360.0,2.00572796]
[1643820944995,0.00017093,37361.0,37360.0,1.92051481]
[1643820945296,0.00017093,37361.0,37360.0,1.85359581]
[1643820945496,0.00017093,37361.0,37360.0,0.35359581]
[1643820945944,0.25017093,37361.0,37359.0,0.06749288]
[1643820946165,0.25017093,37361.0,37359.0,0.06739725]
[1643820946842,0.25017093,37361.0,37360.0,0.20478451]
[1643820947043,0.25017093,37361.0,37359.0,0.06701563]
[1643820947444,0.25017093,37361.0,37359.0,0.06692]
[1643820948946,0.25017093,37361.0,37360.0,6.525e-05]
[1643820948947,0.54578686,37361.0,37360.0,6.525e-05]
[1643820949349,0.89981886,37361.0,37360.0,3.62e-06]
[1643820949999,1.70258886,37361.0,37360.0,3.62e-06]
[1643820950596,1.05294093,37361.0,37360.0,3.62e-06]
[1643820953099,1.40697293,37361.0,37360.0,3.62e-06]
[1643820953547,1.05294093,37361.0,37360.0,3.62e-06]
[1643820953952,1.05294093,37361.0,37354.0,0.52380775]
[1643820953953,0.80294093,37361.0,37354.0,0.52380775]
[1643820954147,0.80294093,37361.0,37358.0,0.00010315]
[1643820954346,0.80294093,37361.0,37359.0,0.00047358]
[1643820954547,0.85006754,37361.0,37359.0,0.00047358]
[1643820954752,0.80294093,37361.0,37359.0,0.00047358]
[1643820955348,0.86919218,37360.0,37356.0,0.00010315]
[1643820955751,0.26919218,37360.0,37356.0,0.00010315]
[1643820955947,0.26919218,37360.0,37355.0,0.06704615]
[1643820956555,0.31011429,37360.0,37355.0,0.00010315]
[1643820956750,0.31011429,37360.0,37354.0,0.42]
[1643820956948,0.31011429,37360.0,37354.0,0.486945]
[1643820957198,0.26919218,37360.0,37354.0,0.486945]
[1643820957594,0.26919218,37360.0,37354.0,0.7150395]
[1643820957795,0.31281883,37360.0,37354.0,0.7150395]
[1643820957991,0.26919218,37360.0,37354.0,0.71514265]
[1643820958191,0.26919218,37360.0,37355.0,0.00050957]
[1643820958593,0.26919218,37360.0,37355.0,0.00061272]
[1643820958792,0.5,37359.0,37354.0,0.32755772]
[1643820958992,0.31487362,37360.0,37354.0,0.32755772]
[1643820959198,0.00017555,37359.0,37357.0,6.128e-05]
[1643820962543,0.354032,37358.0,37357.0,6.128e-05]
[1643820963844,0.69390476,37358.0,37357.0,6.128e-05]
[1643820964040,0.40420766,37358.0,37354.0,0.32755772]
[1643820964244,0.69398686,37357.0,37354.0,0.32755772]
[1643820964441,0.354032,37356.0,37354.0,0.23838006]
[1643820964687,0.31495486,37357.0,37354.0,0.23838006]
[1643820966090,0.31380251,37357.0,37354.0,0.23838006]
[1643820966895,0.354032,37356.0,37354.0,0.23838006]
[1643820967292,0.31380251,37357.0,37354.0,0.23838006]
[1643820967492,0.354032,37356.0,37354.0,0.23838006]
[1643820967694,0.11713366,37358.0,37354.0,0.23838006]
[1643820967992,0.354032,37357.0,37354.0,0.23838006]
[1643820968193,0.11713366,37358.0,37354.0,0.23838006]
[1643820968194,0.00017566,37358.0,37354.0,0.23838006]
[1643820968841,0.00017588,37356.0,37354.0,0.23838006]
[1643820969241,0.00017588,37356.0,37354.0,0.30532406]
[1643820969641,0.00017588,37356.0,37354.0,0.23838006]
[1643820970043,0.00017588,37356.0,37354.0,0.32867792]
[1643820970941,0.00017588,37356.0,37354.0,0.23838006]
[1643820972995,0.00017588,37356.0,37354.0,0.23635349]
[1643820976336,0.00017588,37356.0,37355.0,0.10037347]
[1643820976537,0.00017588,37356.0,37354.0,0.23438319]
[1643820977140,0.00017588,37356.0,37354.0,0.23428003]
[1643820979037,0.00017588,37356.0,37355.0,6.652e-05]
[1643820982989,0.00017588,37356.0,37354.0,0.23239199]
[1643820983350,1.58790507,37355.0,37354.0,0.03953679]
[1643820983649,1.63790507,37355.0,37354.0,0.03953679]
[1643820984048,0.4867038,37355.0,37354.0,0.03953679]
[1643820984249,0.40283073,37355.0,37354.0,0.03953679]
[1643820984650,0.80283073,37355.0,37354.0,0.03953679]
[1643820985449,0.89875532,37355.0,37354.0,0.03953679]
[1643820985650,0.49875532,37355.0,37354.0,0.03953679]
[1643820986252,0.40283073,37355.0,37354.0,0.03953679]
[1643820986450,0.04879873,37355.0,37354.0,0.03953679]
[1643820986852,0.05017588,37356.0,37354.0,0.03953679]
[1643820987107,0.61282373,37355.0,37354.0,0.03953679]
[1643820987306,0.61452442,37355.0,37354.0,0.03953679]
[1643820987707,0.35,37355.0,37354.0,0.03953679]
[1643820987907,0.61881112,37355.0,37354.0,0.03953679]
[1643820988207,0.704032,37355.0,37354.0,0.03953679]
[1643820988407,0.61149984,37355.0,37354.0,0.03953679]
[1643820988609,0.61166814,37355.0,37354.0,0.03953679]
[1643820988807,0.35,37355.0,37354.0,0.03953679]
[1643820989207,0.35017665,37355.0,37354.0,0.03953679]
[1643820989911,0.61239685,37355.0,37354.0,0.03953679]
[1643820990507,0.70017665,37355.0,37354.0,0.03953679]
[1643820991143,1.39409828,37355.0,37354.0,0.03953679]
[1643820991542,0.70017665,37355.0,37354.0,0.03953679]
[1643820991941,0.35017665,37355.0,37354.0,0.03953679]
[1643820992143,0.00017665,37355.0,37354.0,0.04152579]
[1643820992543,0.35017665,37355.0,37354.0,0.04152579]
[1643820992944,0.35420865,37355.0,37354.0,0.04152579]
[1643820993147,0.00017665,37355.0,37354.0,0.04152579]
[1643820993743,0.00017665,37355.0,37354.0,0.28722896]
[1643820994345,0.00017665,37355.0,37354.0,0.04152579]
[1643820996594,0.45017665,37355.0,37354.0,0.04152579]
[1643820996994,0.48361891,37355.0,37354.0,0.04152579]
[1643820998435,0.83361891,37355.0,37354.0,0.04152579]
[1643820998635,0.84415142,37355.0,37354.0,0.04152579]
[1643820998841,0.83481328,37355.0,37354.0,0.04152579]
[1643820999235,0.80017665,37355.0,37354.0,0.04152579]
[1643821000437,1.14006628,37355.0,37354.0,0.04152579]
[1643821000640,1.23546972,37355.0,37354.0,0.04152579]
[1643821001036,0.86546972,37355.0,37354.0,0.04152579]
[1643821001838,0.86568144,37355.0,37354.0,0.04152579]
[1643821003095,0.86568144,37355.0,37352.0,0.00010316]
[1643821003096,0.95,37354.0,37352.0,0.00010316]
[1643821003302,2.2036071,37353.0,37351.0,0.01010316]
[1643821003492,2.4952664,37352.0,37351.0,0.00473466]
[1643821003696,2.5452664,37352.0,37351.0,0.00473466]
[1643821003892,2.88539029,37352.0,37351.0,0.0046315]
[1643821004093,2.84443928,37352.0,37351.0,0.0046315]
[1643821004493,1.79443928,37352.0,37351.0,0.0046315]
[1643821005692,1.44040728,37352.0,37351.0,0.0046315]
[1643821006553,1.79443928,37352.0,37351.0,0.0046315]
[1643821006753,1.44040728,37352.0,37351.0,0.0046315]
[1643821007153,1.39040728,37352.0,37351.0,0.0046315]
[1643821007353,1.05028339,37352.0,37351.0,0.0046315]
[1643821007555,1.10028339,37352.0,37351.0,0.0046315]
[1643821007755,1.05028339,37352.0,37351.0,0.0046315]
[1643821007953,1.10028339,37352.0,37351.0,0.0046315]
[1643821008354,1.18933768,37352.0,37351.0,0.0046315]
[1643821009157,1.10028339,37352.0,37351.0,0.0046315]
[1643821009355,1.10050499,37352.0,37351.0,0.0046315]
[1643821010307,1.14650757,37352.0,37351.0,0.0046315]
[1643821010505,1.10050499,37352.0,37351.0,0.0046315]
[1643821010711,1.10050499,37352.0,37347.0,0.133922]
[1643821010712,0.9,37350.0,37347.0,0.133922]
[1643821010909,0.6407809,37349.0,37347.0,0.133922]
[1643821011114,0.39167899,37348.0,37344.0,0.00186335]
[1643821011306,0.39893183,37347.0,37344.0,0.00186335]
[1643821011507,1.0036,37350.0,37344.0,0.00186335]
[1643821011508,0.40182258,37346.0,37344.0,0.00186335]
[1643821011706,0.62988394,37345.0,37344.0,0.00186335]
[1643821011908,0.32530106,37345.0,37343.0,0.00010391]
[1643821012107,0.32530106,37345.0,37342.0,0.42010391]
[1643821012512,0.03762191,37344.0,37342.0,0.42010391]
[1643821012706,0.04165821,37343.0,37342.0,0.42]
[1643821012908,0.03628418,37343.0,37342.0,0.42]
[1643821013207,0.30980751,37344.0,37342.0,0.42]
[1643821013454,0.74181576,37343.0,37342.0,0.42010391]
[1643821013662,0.8946424,37343.0,37342.0,0.42010391]
[1643821013855,1.214106,37343.0,37342.0,0.42010391]
[1643821014155,1.214106,37343.0,37342.0,0.42]
[1643821014357,1.11127936,37343.0,37342.0,0.42]
[1643821014553,1.11127936,37343.0,37341.0,0.01010391]
[1643821014554,1.11127936,37343.0,37341.0,0.01025468]
[1643821014754,1.87298763,37342.0,37341.0,0.01015077]
[1643821014957,1.58241499,37342.0,37341.0,0.01015077]
[1643821015155,1.6320553,37342.0,37341.0,0.01015077]
[1643821015356,2.5348253,37342.0,37341.0,0.01015077]
[1643821015556,2.11004231,37342.0,37341.0,0.01]
[1643821015954,2.17702731,37342.0,37341.0,0.01]
[1643821016161,1.277387,37342.0,37341.0,0.01]
[1643821016357,0.80277,37342.0,37341.0,1.51]
[1643821016557,0.80277,37342.0,37341.0,0.01]
[1643821017800,1.156802,37342.0,37341.0,0.01]
[1643821018403,1.223788,37342.0,37341.0,0.01]
[1643821018606,0.919756,37342.0,37341.0,0.01]
[1643821018906,1.20084149,37342.0,37341.0,0.01]
[1643821019104,1.63085333,37342.0,37341.0,0.01]
[1643821019503,1.63107647,37342.0,37341.0,0.01]
[1643821020304,1.45,37341.0,37335.0,0.00010391]
[1643821020509,0.7404589,37340.0,37334.0,0.42010391]
[1643821020703,0.404032,37339.0,37334.0,0.00010391]
[1643821020943,0.64001868,37338.0,37334.0,0.00010391]
[1643821021144,0.354032,37337.0,37331.0,0.01]
[1643821021349,0.09059415,37336.0,37331.0,0.01]
[1643821021650,0.134003,37334.0,37331.0,0.01]
[1643821021943,0.354032,37333.0,37332.0,0.00050325]
[1643821022143,0.05,37333.0,37332.0,0.00050325]
[1643821022344,0.75,37333.0,37331.0,0.00560716]
[1643821022564,1.11018538,37332.0,37331.0,0.00560716]
[1643821022744,1.16018538,37332.0,37331.0,0.00550325]
[1643821023544,1.17270393,37332.0,37331.0,0.00550325]
[1643821023744,1.52673593,37332.0,37331.0,0.00550325]
[1643821023946,0.9,37332.0,37331.0,0.00550325]
[1643821024444,0.05,37332.0,37331.0,0.00550325]
[1643821024692,0.05,37333.0,37331.0,0.00550325]
[1643821024892,0.40361115,37334.0,37331.0,0.00550325]
[1643821024893,1.11247499,37332.0,37331.0,0.00550325]
[1643821025094,0.45285329,37334.0,37331.0,0.00550325]
[1643821025292,0.92874651,37332.0,37331.0,0.00550325]
[1643821025491,0.97874651,37332.0,37331.0,0.00550325]
[1643821026093,1.68277851,37332.0,37331.0,0.00550325]
[1643821026292,1.33277851,37332.0,37331.0,0.00550325]
[1643821026493,0.354032,37332.0,37331.0,0.00550325]
[1643821026703,0.02799037,37335.0,37331.0,0.00550325]
[1643821027394,0.02799037,37335.0,37331.0,0.00560716]
[1643821027592,0.02799037,37335.0,37331.0,0.23155774]
[1643821027992,0.02799037,37335.0,37331.0,0.00550325]
[1643821028443,0.02799037,37335.0,37331.0,0.00560716]
[1643821029140,8.608e-05,37332.0,37331.0,0.00556503]
[1643821029343,0.00023025,37332.0,37331.0,0.00556503]
[1643821030244,0.00023025,37332.0,37331.0,0.07256003]
[1643821030943,0.00023025,37332.0,37331.0,0.33868409]
[1643821032189,0.00023025,37332.0,37331.0,0.07256003]
[1643821033189,0.00023025,37332.0,37331.0,0.32019126]
[1643821033889,0.00023025,37332.0,37331.0,0.07256003]
[1643821037151,0.70023025,37332.0,37331.0,0.07256003]
[1643821037648,0.00023025,37332.0,37331.0,0.07256003]
[1643821038043,1.00023025,37332.0,37331.0,0.07256003]
[1643821038249,0.99023025,37332.0,37331.0,0.07256003]
[1643821038444,0.05,37333.0,37331.0,0.07256003]
[1643821038643,0.067003,37334.0,37331.0,0.07256003]
[1643821038844,0.354032,37333.0,37331.0,0.07266394]
[1643821039043,0.18328257,37334.0,37331.0,0.07266394]
[1643821039245,0.00023025,37332.0,37331.0,0.07266394]
[1643821039443,0.00023025,37332.0,37331.0,0.07256003]
[1643821039704,0.00023025,37332.0,37331.0,0.00556503]
[1643821039906,0.00023025,37332.0,37331.0,0.00090615]
[1643821039907,0.35426225,37332.0,37331.0,0.00090615]
[1643821040101,1.3018362,37332.0,37331.0,0.00090615]
[1643821040301,1.69302451,37332.0,37331.0,0.00090615]
[1643821040501,0.6558682,37332.0,37331.0,0.00090615]